Workbook

Sheet EXC
A2: K O N I N K L I J K E B E L G I S C H E B I L J A R T B O N D | M2: - | N2: F E D E R A T I O N R O Y A L E B E L G E DE B I L L A R D
E3: VZW - Zetel - " Café Sport " - Martelarenplein, 13 - 3000 Leuven
D4: GEWEST BEIDE VLAANDEREN
K5: 2018 - 2019
A6: UITSLAG GEWESTVOORRONDE : EXC KLASSE DRIEBANDEN MB
B8: Inrichting : K.BC ONS HUIS | Q8: C | R8: MIN | S8: MAX
B9: datum : | D9: za, 2 en zondag 3 februari 2019 | O9: 42 | R9: 0.765 | S9: 0.95
B11: NATID | C11: NAAM | L11: CLUB | N11: WEDP | O11: BP | P11: Beurten | Q11: GEM 2,30 | R11: HR | S11: OPM | U11: Pl | Y11: rooster4 | Z11: rooster 5 | AA11: rooster 6 | AB11: rooster7
B13: 4361 | C13: =VLOOKUP(B13,LEDEN!A:B,2,FALSE) -> MANGELINCKX Nico | L13: =VLOOKUP(B13,LEDEN!A:C,3,FALSE) -> KOH
C14: =VLOOKUP(B14,LEDEN!A:B,2,FALSE) ->  | Q14: =IF(P14=0," ",TRUNC(O14/P14,2)) ->  | S14: =IF(O14=0,"",IF(Q14>=X14,"PR",IF(Q14<W14,"OG","MG"))) ->  | W14: 0.765 | X14: 0.949 | Y14: a1 | Z14: a1 | AA14: a1 | AB14: a1
C15: =VLOOKUP(B15,LEDEN!A:B,2,FALSE) ->  | Q15: =IF(P15=0," ",TRUNC(O15/P15,2)) ->  | S15: =IF(O15=0,"",IF(Q15>=X15,"PR",IF(Q15<W15,"OG","MG"))) ->  | W15: 0.765 | X15: 0.949 | Y15: a2 | Z15: a2 | AA15: a6 | AB15: a4
C16: =VLOOKUP(B16,LEDEN!A:B,2,FALSE) ->  | W16: 0.765 | X16: 0.949 | Z16: a5 | AA16: a3 | AB16: a7
C17: =VLOOKUP(B17,LEDEN!A:B,2,FALSE) ->  | W17: 0.765 | X17: 0.949 | Z17: a3 | AA17: a4 | AB17: a5
B18: EINDRESULTAAT | N18: =SUM(N14:N17) -> 0 | O18: =SUM(O14:O17) -> 0 | P18: =SUM(P14:P17) -> 0 | Q18: =IF(P18=0," ",TRUNC(O18/P18,2)) ->  | R18: =MAX(R14:R17) -> 0 | S18: =IF(O18=0,"",IF(Q18>=X18,"PR",IF(Q18<W18,"OG","MG"))) ->  | W18: 0.765 | X18: 0.949 | Z18: a4 | AA18: a5 | AB18: a6
B20: 4363 | C20: =VLOOKUP(B20,LEDEN!A:B,2,FALSE) -> PRIEUS Andy | L20: =VLOOKUP(B20,LEDEN!A:C,3,FALSE) -> K.BR | Y20: a2 | Z20: a2 | AA20: a2 | AB20: a2
B21: 4557 | C21: =VLOOKUP(B21,LEDEN!A:B,2,FALSE) -> SERWEYTENS Lieven | Q21: =IF(P21=0," ",TRUNC(O21/P21,2)) ->  | S21: =IF(O21=0,"",IF(Q21>=X21,"PR",IF(Q21<W21,"OG","MG"))) ->  | W21: 0.765 | X21: 0.949 | Y21: a1 | Z21: a1 | AA21: a6 | AB21: a5
C22: =VLOOKUP(B22,LEDEN!A:B,2,FALSE) ->  | Q22: =IF(P22=0," ",TRUNC(O22/P22,2)) ->  | S22: =IF(O22=0,"",IF(Q22>=X22,"PR",IF(Q22<W22,"OG","MG"))) ->  | W22: 0.765 | X22: 0.949 | Z22: a4 | AA22: a4 | AB22: a7
C23: =VLOOKUP(B23,LEDEN!A:B,2,FALSE) ->  | W23: 0.765 | X23: 0.949 | Z23: a5 | AA23: a5 | AB23: a4
C24: =VLOOKUP(B24,LEDEN!A:B,2,FALSE) ->  | W24: 0.765 | X24: 0.949 | Z24: a3 | AA24: a3 | AB24: a6
B25: EINDRESULTAAT | N25: =SUM(N21:N24) -> 0 | O25: =SUM(O21:O24) -> 0 | P25: =SUM(P21:P24) -> 0 | Q25: =IF(P25=0," ",TRUNC(O25/P25,2)) ->  | R25: =MAX(R21:R24) -> 0 | S25: =IF(O25=0,"",IF(Q25>=X25,"PR",IF(Q25<W25,"OG","MG"))) ->  | W25: 0.765 | X25: 0.949
B27: 4557 | C27: =VLOOKUP(B27,LEDEN!A:B,2,FALSE) -> SERWEYTENS Lieven | L27: =VLOOKUP(B27,LEDEN!A:C,3,FALSE) -> K.BR | Y27: a3 | Z27: a3 | AA27: a3 | AB27: a3
B28: 4363 | C28: =VLOOKUP(B28,LEDEN!A:B,2,FALSE) -> PRIEUS Andy | Q28: =IF(P28=0," ",TRUNC(O28/P28,2)) ->  | S28: =IF(O28=0,"",IF(Q28>=X28,"PR",IF(Q28<W28,"OG","MG"))) ->  | W28: 0.765 | X28: 0.949 | Y28: a4 | Z28: a4 | AA28: a5 | AB28: a4
C29: =VLOOKUP(B29,LEDEN!A:B,2,FALSE) ->  | Q29: =IF(P29=0," ",TRUNC(O29/P29,2)) ->  | S29: =IF(O29=0,"",IF(Q29>=X29,"PR",IF(Q29<W29,"OG","MG"))) ->  | W29: 0.765 | X29: 0.949 | Z29: a5 | AA29: a1 | AB29: a6
C30: =VLOOKUP(B30,LEDEN!A:B,2,FALSE) ->  | W30: 0.765 | X30: 0.949 | Z30: a1 | AA30: a6 | AB30: a7
C31: =VLOOKUP(B31,LEDEN!A:B,2,FALSE) ->  | W31: 0.765 | X31: 0.949 | Z31: a2 | AA31: a2 | AB31: a5
B32: EINDRESULTAAT | N32: =SUM(N28:N31) -> 0 | O32: =SUM(O28:O31) -> 0 | P32: =SUM(P28:P31) -> 0 | Q32: =IF(P32=0," ",TRUNC(O32/P32,2)) ->  | R32: =MAX(R28:R31) -> 0 | S32: =IF(O32=0,"",IF(Q32>=X32,"PR",IF(Q32<W32,"OG","MG"))) ->  | W32: 0.765 | X32: 0.949
B34: 1329 | C34: =VLOOKUP(B34,LEDEN!A:B,2,FALSE) -> COENEN Philip | L34: =VLOOKUP(B34,LEDEN!A:C,3,FALSE) -> KKBC | Y34: a4 | Z34: a4 | AA34: a4 | AB34: a4
B35: 4931 | C35: =VLOOKUP(B35,LEDEN!A:B,2,FALSE) -> VAN HOYLANDT ROGER | Q35: =IF(P35=0," ",TRUNC(O35/P35,2)) ->  | S35: =IF(O35=0,"",IF(Q35>=X35,"PR",IF(Q35<W35,"OG","MG"))) ->  | W35: 0.765 | X35: 0.949 | Y35: a3 | Z35: a3 | AA35: a5 | AB35: a1
C36: =VLOOKUP(B36,LEDEN!A:B,2,FALSE) ->  | Q36: =IF(P36=0," ",TRUNC(O36/P36,2)) ->  | S36: =IF(O36=0,"",IF(Q36>=X36,"PR",IF(Q36<W36,"OG","MG"))) ->  | W36: 0.765 | X36: 0.949 | Z36: a2 | AA36: a2 | AB36: a3
C37: =VLOOKUP(B37,LEDEN!A:B,2,FALSE) ->  | W37: 0.765 | X37: 0.949 | Z37: a5 | AA37: a1 | AB37: a2
C38: =VLOOKUP(B38,LEDEN!A:B,2,FALSE) ->  | W38: 0.765 | X38: 0.949 | Z38: a1 | AA38: a6 | AB38: a6
B39: EINDRESULTAAT | N39: =SUM(N35:N38) -> 0 | O39: =SUM(O35:O38) -> 0 | P39: =SUM(P35:P38) -> 0 | Q39: =IF(P39=0," ",TRUNC(O39/P39,2)) ->  | R39: =MAX(R35:R38) -> 0 | S39: =IF(O39=0,"",IF(Q39>=X39,"PR",IF(Q39<W39,"OG","MG"))) -> 
B41: 4931 | C41: =VLOOKUP(B41,LEDEN!A:B,2,FALSE) -> VAN HOYLANDT ROGER | L41: =VLOOKUP(B41,LEDEN!A:C,3,FALSE) -> QU
B42: 1329 | C42: =VLOOKUP(B42,LEDEN!A:B,2,FALSE) -> COENEN Philip | Q42: =IF(P42=0," ",TRUNC(O42/P42,2)) ->  | S42: =IF(O42=0,"",IF(Q42>=X42,"PR",IF(Q42<W42,"OG","MG"))) -> 
C43: =VLOOKUP(B43,LEDEN!A:B,2,FALSE) ->  | Q43: =IF(P43=0," ",TRUNC(O43/P43,2)) ->  | S43: =IF(O43=0,"",IF(Q43>=X43,"PR",IF(Q43<W43,"OG","MG"))) -> 
C44: =VLOOKUP(B44,LEDEN!A:B,2,FALSE) -> 
C45: =VLOOKUP(B45,LEDEN!A:B,2,FALSE) -> 
B46: EINDRESULTAAT | N46: =SUM(N42:N45) -> 0 | O46: =SUM(O42:O45) -> 0 | P46: =SUM(P42:P45) -> 0 | Q46: =IF(P46=0," ",TRUNC(O46/P46,2)) ->  | R46: =MAX(R42:R45) -> 0 | S46: =IF(O46=0,"",IF(Q46>=X46,"PR",IF(Q46<W46,"OG","MG"))) -> 
D49: 2019-02-03 | P49: Albert Verbeken

Sheet EXC zf
A2: K O N I N K L I J K E B E L G I S C H E B I L J A R T B O N D | M2: - | N2: F E D E R A T I O N R O Y A L E B E L G E DE B I L L A R D
E3: VZW - Zetel - " Café Sport " - Martelarenplein, 13 - 3000 Leuven
D4: GEWEST BEIDE VLAANDEREN
K5: 2018 - 2019
A6: UITSLAG GEWESTVOORRONDE : EXC KLASSE DRIEBANDEN MB
B8: Inrichting : K.BC ONS HUIS | Q8: C | R8: MIN | S8: MAX
B9: datum : | D9: za, 2 en zondag 3 februari 2019 | O9: 42 | R9: 0.765 | S9: 0.949
B11: NATID | C11: NAAM | L11: CLUB | N11: WEDP | O11: BP | P11: Beurten | Q11: GEM 2,30 | R11: HR | S11: OPM | U11: Pl | Y11: rooster4 | Z11: rooster 5 | AA11: rooster 6 | AB11: rooster7
B13: 4361 | C13: =VLOOKUP(B13,LEDEN!A:B,2,FALSE) -> MANGELINCKX Nico | L13: =VLOOKUP(B13,LEDEN!A:C,3,FALSE) -> KOH
B14: 4931 | C14: =VLOOKUP(B14,LEDEN!A:B,2,FALSE) -> VAN HOYLANDT ROGER | N14: 0 | O14: 35 | P14: 45 | Q14: =IF(P14=0," ",TRUNC(O14/P14,3)) -> 0.777 | R14: 4 | S14: =IF(O14=0,"",IF(Q14>X14,"PR",IF(Q14<W14,"OG","MG"))) -> MG | W14: 0.765 | X14: 0.949 | Y14: a1 | Z14: a1 | AA14: a1 | AB14: a1
B15: 4363 | C15: =VLOOKUP(B15,LEDEN!A:B,2,FALSE) -> PRIEUS Andy | N15: 0 | O15: 36 | P15: 56 | Q15: =IF(P15=0," ",TRUNC(O15/P15,3)) -> 0.642 | R15: 8 | S15: =IF(O15=0,"",IF(Q15>X15,"PR",IF(Q15<W15,"OG","MG"))) -> OG | W15: 0.765 | X15: 0.949 | Y15: a2 | Z15: a2 | AA15: a6 | AB15: a4
B16: 1329 | C16: =VLOOKUP(B16,LEDEN!A:B,2,FALSE) -> COENEN Philip | N16: 0 | O16: 27 | P16: 36 | Q16: =IF(P16=0," ",TRUNC(O16/P16,3)) -> 0.75 | R16: 4 | S16: OG | W16: 0.765 | X16: 0.949 | Z16: a5 | AA16: a3 | AB16: a7
B17: 4557 | C17: =VLOOKUP(B17,LEDEN!A:B,2,FALSE) -> SERWEYTENS Lieven | N17: 2 | O17: 42 | P17: 74 | Q17: =IF(P17=0," ",TRUNC(O17/P17,3)) -> 0.567 | R17: 3 | S17: OG | W17: 0.765 | X17: 0.949 | Z17: a3 | AA17: a4 | AB17: a5
B18: EINDRESULTAAT | N18: =SUM(N14:N17) -> 2 | O18: =SUM(O14:O17) -> 140 | P18: 211 | Q18: =O18/P18 -> 0.663507109 | R18: 8 | S18: OG | U18: 3 | W18: 0.765 | X18: 0.949 | Z18: a4 | AA18: a5 | AB18: a6
B20: 4363 | C20: =VLOOKUP(B20,LEDEN!A:B,2,FALSE) -> PRIEUS Andy | L20: =VLOOKUP(B20,LEDEN!A:C,3,FALSE) -> K.BR | Y20: a2 | Z20: a2 | AA20: a2 | AB20: a2
B21: 4557 | C21: =VLOOKUP(B21,LEDEN!A:B,2,FALSE) -> SERWEYTENS Lieven | N21: 2 | O21: 42 | P21: 63 | Q21: =IF(P21=0," ",TRUNC(O21/P21,3)) -> 0.666 | R21: 5 | S21: =IF(O21=0,"",IF(Q21>X21,"PR",IF(Q21<W21,"OG","MG"))) -> OG | W21: 0.765 | X21: 0.949 | Y21: a1 | Z21: a1 | AA21: a6 | AB21: a5
B22: 4361 | C22: =VLOOKUP(B22,LEDEN!A:B,2,FALSE) -> MANGELINCKX Nico | N22: 2 | O22: 42 | P22: 56 | Q22: 0.75 | R22: 6 | S22: OG | W22: 0.765 | X22: 0.949 | Z22: a4 | AA22: a4 | AB22: a7
B23: 4931 | C23: =VLOOKUP(B23,LEDEN!A:B,2,FALSE) -> VAN HOYLANDT ROGER | N23: 2 | O23: 42 | P23: 62 | Q23: 0.677 | R23: 3 | S23: OG | W23: 0.765 | X23: 0.949 | Z23: a5 | AA23: a5 | AB23: a4
B24: 1329 | C24: =VLOOKUP(B24,LEDEN!A:B,2,FALSE) -> COENEN Philip | N24: 0 | O24: 38 | P24: 50 | Q24: 0.76 | R24: 6 | S24: OG | W24: 0.765 | X24: 0.949 | Z24: a3 | AA24: a3 | AB24: a6
B25: EINDRESULTAAT | N25: =SUM(N21:N24) -> 6 | O25: =SUM(O21:O24) -> 164 | P25: =SUM(P21:P24) -> 231 | Q25: =O25/P25 -> 0.70995671 | R25: 6 | S25: OG | U25: 2 | W25: 0.765 | X25: 0.949
B27: 4557 | C27: =VLOOKUP(B27,LEDEN!A:B,2,FALSE) -> SERWEYTENS Lieven | L27: =VLOOKUP(B27,LEDEN!A:C,3,FALSE) -> K.BR | Y27: a3 | Z27: a3 | AA27: a3 | AB27: a3
B28: 4363 | C28: =VLOOKUP(B28,LEDEN!A:B,2,FALSE) -> PRIEUS Andy | N28: 0 | O28: 41 | P28: 63 | Q28: =IF(P28=0," ",TRUNC(O28/P28,3)) -> 0.65 | R28: 4 | S28: =IF(O28=0,"",IF(Q28>X28,"PR",IF(Q28<W28,"OG","MG"))) -> OG | W28: 0.765 | X28: 0.949 | Y28: a4 | Z28: a4 | AA28: a5 | AB28: a4
B29: 1329 | C29: =VLOOKUP(B29,LEDEN!A:B,2,FALSE) -> COENEN Philip | N29: 0 | O29: 31 | P29: 51 | Q29: 0.607 | R29: 6 | S29: OG | W29: 0.765 | X29: 0.949 | Z29: a5 | AA29: a1 | AB29: a6
B30: 4931 | C30: =VLOOKUP(B30,LEDEN!A:B,2,FALSE) -> VAN HOYLANDT ROGER | N30: 2 | O30: 42 | P30: 55 | Q30: 0.763 | R30: 4 | S30: OG | W30: 0.765 | X30: 0.949 | Z30: a1 | AA30: a6 | AB30: a7
B31: 4361 | C31: =VLOOKUP(B31,LEDEN!A:B,2,FALSE) -> MANGELINCKX Nico | N31: 0 | O31: 38 | P31: 74 | Q31: 0.513 | R31: 6 | S31: OG | W31: 0.765 | X31: 0.949 | Z31: a2 | AA31: a2 | AB31: a5
B32: EINDRESULTAAT | N32: =SUM(N28:N31) -> 2 | O32: =SUM(O28:O31) -> 152 | P32: =SUM(P28:P31) -> 243 | Q32: =O32/P32 -> 0.6255144033 | R32: 6 | S32: OG | U32: 4 | W32: 0.765 | X32: 0.949
B34: 1329 | C34: =VLOOKUP(B34,LEDEN!A:B,2,FALSE) -> COENEN Philip | L34: =VLOOKUP(B34,LEDEN!A:C,3,FALSE) -> KKBC | Y34: a4 | Z34: a4 | AA34: a4 | AB34: a4
B35: 4931 | C35: =VLOOKUP(B35,LEDEN!A:B,2,FALSE) -> VAN HOYLANDT ROGER | N35: 2 | O35: 42 | P35: 68 | Q35: =IF(P35=0," ",TRUNC(O35/P35,3)) -> 0.617 | R35: 4 | S35: =IF(O35=0,"",IF(Q35>X35,"PR",IF(Q35<W35,"OG","MG"))) -> OG | W35: 0.765 | X35: 0.949 | Y35: a3 | Z35: a3 | AA35: a5 | AB35: a1
B36: 4557 | C36: =VLOOKUP(B36,LEDEN!A:B,2,FALSE) -> SERWEYTENS Lieven | N36: 2 | O36: 42 | P36: 51 | Q36: 0.823 | R36: 6 | S36: MG | W36: 0.765 | X36: 0.949 | Z36: a2 | AA36: a2 | AB36: a3
B37: 4361 | C37: =VLOOKUP(B37,LEDEN!A:B,2,FALSE) -> MANGELINCKX Nico | N37: 2 | O37: 42 | P37: 36 | Q37: 1.166 | R37: 7 | S37: PR | W37: 0.765 | X37: 0.949 | Z37: a5 | AA37: a1 | AB37: a2
B38: 4363 | C38: =VLOOKUP(B38,LEDEN!A:B,2,FALSE) -> PRIEUS Andy | N38: 2 | O38: 42 | P38: 50 | Q38: 0.84 | R38: 6 | S38: MG | W38: 0.765 | X38: 0.949 | Z38: a1 | AA38: a6 | AB38: a6
B39: EINDRESULTAAT | N39: =SUM(N35:N38) -> 8 | O39: =SUM(O35:O38) -> 168 | P39: =SUM(P35:P38) -> 205 | Q39: =O39/P39 -> 0.8195121951 | R39: 7 | S39: MG | U39: 1 | W39: 0.765 | X39: 0.949
B41: 4931 | C41: =VLOOKUP(B41,LEDEN!A:B,2,FALSE) -> VAN HOYLANDT ROGER | L41: =VLOOKUP(B41,LEDEN!A:C,3,FALSE) -> QU
B42: 1329 | C42: =VLOOKUP(B42,LEDEN!A:B,2,FALSE) -> COENEN Philip | N42: 0 | O42: 31 | P42: 68 | Q42: =IF(P42=0," ",TRUNC(O42/P42,3)) -> 0.455 | R42: 3 | S42: =IF(O42=0,"",IF(Q42>X42,"PR",IF(Q42<W42,"OG","MG"))) -> OG | W42: 0.765 | X42: 0.949
B43: 4361 | C43: =VLOOKUP(B43,LEDEN!A:B,2,FALSE) -> MANGELINCKX Nico | N43: 2 | O43: 42 | P43: 45 | Q43: 0.933 | R43: 8 | S43: =IF(O43=0,"",IF(Q43>X43,"PR",IF(Q43<W43,"OG","MG"))) -> MG | W43: 0.765 | X43: 0.949
B44: 4557 | C44: =VLOOKUP(B44,LEDEN!A:B,2,FALSE) -> SERWEYTENS Lieven | N44: 0 | O44: 27 | P44: 55 | Q44: 0.49 | R44: 3 | S44: OG | W44: 0.765 | X44: 0.949
B45: 4363 | C45: =VLOOKUP(B45,LEDEN!A:B,2,FALSE) -> PRIEUS Andy | N45: 0 | O45: 35 | P45: 62 | Q45: 0.564 | R45: 3 | S45: OG | W45: 0.765 | X45: 0.949
B46: EINDRESULTAAT | N46: =SUM(N42:N45) -> 2 | O46: =SUM(O42:O45) -> 135 | P46: =SUM(P42:P45) -> 230 | Q46: =O46/P46 -> 0.5869565217 | R46: 8 | S46: OG | U46: 5 | W46: 0.765 | X46: 0.949
D49: 2019-02-03 | P49: Albert Verbeken

Sheet LEDEN
D1: NS
A3: 8758 | B3: DUYM Ignace | C3: ACG
A4: 4505 | B4: BRACKE Peter | C4: ACG
A5: 2314 | B5: SONCK ROBBY | C5: ACG
A6: 6927 | B6: DUJARDIN Luc | C6: ACG
A7: 4432 | B7: BAETE Jean-Pierre | C7: ACG
A8: 9431 | B8: JACQUEMYN Tony | C8: KBCAW
A9: 4496 | B9: VAN HANEGEM Izaak | C9: ACG
A10: 6705 | B10: BERNAERDT Roland | C10: ACG
A11: 4496 | B11: VAN HANEGEM Izaak | C11: ACG
A12: 7125 | B12: Nuytten Renold | C12: ACG
A13: 9821 | B13: VAN DEN BOSSCHE Daniël | C13: UN
A14: 7302 | B14: DE CRAECKER Werner | C14: ACG
A15: 9800 | B15: DE CRAECKER Emma (jeugd) | C15: ACG
A16: 9826 | B16: DE BIE Rudy | C16: ACG
A17: 4416 | B17: VAN RIJSSELBERGHE Johan | C17: ACG
A18: 9261 | B18: de MEULEMEESTER Cédric | C18: ACG
A19: 1036 | B19: DEPOORTER MIEKE | C19: ACG
A20: 4845 | B20: STEVENS PATRICK | C20: KBCAW
A21: 5587 | B21: GERMONPRE Luc | C21: ACG
A22: 8671 | B22: DE MUYNCK Jean-Pierre | C22: ACG
A23: 8672 | B23: DEMOOR Danny | C23: ACG
A24: 6428 | B24: MEULEMAN Rudy | C24: ACG
A27: 4854 | B27: ROSIER Peter | C27: BCSK
A28: 4895 | B28: DE BLOCK Omer | C28: BCSK
A29: 6488 | B29: DE WITTE Franky | C29: BCSK
A30: 6489 | B30: DE WITTE Jeffrey | C30: BCSK
A31: 7812 | B31: BOERJAN Pierre | C31: BCSK
A32: 8674 | B32: VAN LEUVENHAGE Dylan | C32: BCSK
A33: 8900 | B33: JANSSENS Dirk | C33: BCSK
A34: 1294 | B34: BACKMAN Werner | C34: BCSK
A35: 8133 | B35: VAN CRAENENBROECK Theo | C35: BCSK
A36: 4853 | B36: NOPPE Robert | C36: BCSK
A37: 6784B | B37: VAN BIESEN Tom | C37: BCSK
A38: 9441 | B38: ROSIER Nick | C38: BCSK
A39: 9442 | B39: VERGULT François | C39: BCSK
A40: 4937 | B40: LEEMANS Willy | C40: KGV
A41: 9276 | B41: DE KORT Marc | C41: BCSK
A42: 4894 | B42: DAELMAN Walther | C42: BCSK
A43: 8507 | B43: TROONBEECKX Willy | C43: BCSK
A44: 8717 | B44: VAN DEN EEDEN Kurt | C44: K.SNBA
A45: 8073 | B45: DE WITTE Tamara | C45: BCSK
A46: 8385 | B46: GODDAERT Johan | C46: BCSK
A47: 9955 | B47: DE RUDDER David | C47: BCSK
A48: 9348 | B48: WOUTERS Marc | C48: BCSK
A49: 8650 | B49: DE BOEY Gijs | C49: BCSK
A51: 8689 | B51: DEWAELE Eddy | C51: CBC-DLS
A52: 8690 | B52: JOYE Rik | C52: CBC-DLS
A53: 8704 | B53: CALLENS Filip | C53: CBC-DLS
A54: 8691 | B54: BRUNEEL Norbert | C54: CBC-DLS
A55: 8649 | B55: VAN DE VELDE Desire | C55: CBC-DLS
A56: 8658 | B56: MONDELAERS Dries | C56: CBC-DLS
A57: 8652 | B57: TANGHE Freddy | C57: CBC-DLS
A59: 4192 | B59: BEAUJEAN Karel | C59: CM
A60: 9059 | B60: BERTEN Franky | C60: CM
A61: 5500 | B61: ROELANTS Karel | C61: CM
A62: 4143 | B62: VAN CRAEN Albert | C62: CM
A63: 6189 | B63: VANDENABEELE Marc | C63: CM
A64: 7796 | B64: DE LAET Cassy | C64: CM
A65: 7822 | B65: SCHOUTETENS Marc | C65: CM
A66: 9512 | B66: DE SCHILDER Leon | C66: CM
A67: 9513 | B67: CARPAY Henri | C67: CM
A68: 4682 | B68: SCHOUTETENS Pieter | C68: CM
A70: 7465 | B70: COUSSEMENT Wim | C70: DK
A71: 9413 | B71: DANNEELS Laurent | C71: DK
A72: 5682 | B72: DELANGHE Lievin | C72: DK
A73: 4188 | B73: RONDELEZ Noel | C73: DK
A74: 4180 | B74: CONSTANT Geert | C74: DK
A75: 8047 | B75: DEVRIENDT Bart | C75: DK
A77: 4763 | B77: CASTELEYN Rik | C77: DOS
A78: 1061 | B78: GELDHOF Frank | C78: DOS
A79: 4762 | B79: CASTELEYN Henk | C79: DOS
A80: 4765 | B80: DEBAES Peter | C80: DOS
A81: 4768 | B81: DEDIER Georges | C81: DOS
A82: 8156 | B82: DETOLLENAERE Jonny | C82: DOS
A83: 4776 | B83: HOUTHAEVE Jean-Marie | C83: DOS
A84: 4778 | B84: LEYN Philippe | C84: DOS
A85: 7697 | B85: GHESQUIERE Jozef | C85: DOS
A86: 8090 | B86: VANLAUWE Stephan | C86: DOS
A87: 4693 | B87: MOSTREY Peter | C87: DOS
A88: 4733 | B88: NUYTTENS Gino | C88: DOS
A89: 6720 | B89: WILLE Etienne | C89: DOS
A90: 4738 | B90: VANDENDRIESSCHE Philip | C90: KKBC
A91: 6094 | B91: VANACKER Steven | C91: DOS
A92: 9461 | B92: RONDELEZ Kenneth | C92: DOS
A93: 2299 | B93: VANTHOURNOUT Michel | C93: DOS
A94: 1055 | B94: BRUWIER Erwin | C94: DOS
A95: 8705 | B95: STEVENS Ilse | C95: DOS
A96: 4774 | B96: DUYCK Peter | C96: DOS
A97: 8697 | B97: MELNYTSCHENKO Cédric | C97: DOS
A98: 4759 | B98: WARLOP Luc | C98: DOS
A99: 1060 | B99: Wittevrongel Dirk | C99: DOS
A100: 9018 | B100: GHEVART Jean | C100: DOS
A101: 9957 | B101: BRUWIER Ludwin | C101: DOS
A102: 9958 | B102: DEBLAUWE Dimitri | C102: DOS
A103: 9766 | B103: VANNESTE Philip | C103: DOS
A104: 9045 | B104: WALLART Jean-Charles | C104: DOS
A106: 4454 | B106: DEPOORTER Reginald | C106: GS
A107: 4466 | B107: TREMERIE Walter | C107: GS
A108: 4541 | B108: DELLAERT Marc | C108: GS
A109: 4587 | B109: VERSTRAETEN Frank | C109: GS
A110: 6701 | B110: BROCHE Philippe | C110: GS
A111: 6703 | B111: CLAUS Pascal | C111: GS
A112: 7203 | B112: DELARUE Dirk | C112: GS
A113: 7498 | B113: VAN DAM Jens | C113: GS
A114: 8163 | B114: DE WEIRDT Jean-Marie | C114: GS
A115: 8654 | B115: BAETSLE Peter | C115: GS
A116: 8890 | B116: VAN HOLLE Jean-Pierre | C116: GS
A117: 4506 | B117: BRACKE Tom | C117: GS
A118: 9419 | B118: MOEYKENS Biacio | C118: GS
A119: 9959 | B119: DE DEYNE Firmin | C119: GS
A120: 8655 | B120: TOLLEBEKE Arthur | C120: GS
A121: 4394 | B121: CREVE Camiel | C121: GS
A123: 8918 | B123: VANDENBERGHE Pascal | C123: K&V
A124: 9428 | B124: WIELFAERT Curt | C124: K&V
A125: 9429 | B125: HERREMAN Luc | C125: K&V
A126: 9520 | B126: VANDERLINDEN Aimé | C126: K&V
A127: 9960 | B127: DE VOS Antoon | C127: K&V
A128: 9262 | B128: CLAEYS Hubert | C128: K&V
A129: 9782 | B129: D'HAEZE Adolf | C129: K&V
A130: 9781 | B130: DOS SANTOS Jose | C130: K&V
A131: 9608 | B131: VAN BREDA Mike | C131: K&V
A132: 7461 | B132: GRIMON Johan | C132: K&V
A134: 2944 | B134: t SEYEN Roland | C134: K.BR
A135: 4148 | B135: DE CUYPER René | C135: K.BR
A136: 4150 | B136: DEVROE Eddy | C136: K.BR
A137: 4156 | B137: SEYS Norbert | C137: K.BR
A138: 4214 | B138: DE BAERE Karel | C138: K.BR
A139: 4217 | B139: DE GRAEVE David | C139: K.BR
A140: 4222 | B140: DE QUEKER Guido | C140: K.BR
A141: 4223 | B141: DRUWEL Francois | C141: K.BR
A142: 4224 | B142: GUIDE Jean-Pierre | C142: K.BR
A143: 4241 | B143: VANHECKE Rik | C143: K.BR
A144: 4242 | B144: VERCRUYSSE Johan | C144: K.BR
A145: 4557 | B145: SERWEYTENS Lieven | C145: K.BR
A146: 4779 | B146: LEYS Bart | C146: K.BR
A147: 5186 | B147: DEFRUYT Dirk | C147: K.BR
A148: 5190 | B148: SAVER André | C148: K.BR
A149: 5408 | B149: VANRAPENBUSCH Franky | C149: K.BR
A150: 5685 | B150: BOECKAERT Eric | C150: K.BR
A151: 5689 | B151: SAVER Koen | C151: K.BR
A152: 6081 | B152: QUITTELIER Stephane | C152: K.BR
A153: 7795 | B153: HACKE Jean-Marie | C153: K.BR
A154: 7797 | B154: BEIRENS Marc | C154: K.BR
A155: 8162 | B155: SEYS Herbert | C155: K.BR
A156: 8454 | B156: STUYVAERT Marijn | C156: K.BR
A157: 8669 | B157: DE CLERCK Jean | C157: K.BR
A158: 8670 | B158: SCHOE Henk | C158: K.BR
A159: 4185 | B159: DEPOORTER Daniël | C159: K.BR
A160: 9062 | B160: DE BUSSCHER Walter | C160: K.BR
A161: 8921 | B161: CHRISTIAENS Danny | C161: K.BR
A162: 7801 | B162: EISCHEN Frédéric | C162: K.BR
A163: 4250 | B163: COBBAERT Thierry | C163: K.BR
A164: 9257 | B164: MUS Hendrik | C164: K.BR
A165: 9258 | B165: STEFFENS Alain | C165: K.BR
A166: 4267 | B166: THOMAS Peter | C166: K.BR
A167: 4722 | B167: BLAUWBLOMME Henk | C167: K.BR
A168: 7529 | B168: VASSEUR Patrick | C168: DOS
A169: 9256 | B169: DALLINGA Louis | C169: K.BR
A170: 8362 | B170: DEKRAKER Jean-Paul | C170: K.BR
A171: 5691 | B171: TORRES Manuel | C171: K.BR
A172: 4682 | B172: SCHOUTETENS Pieter | C172: K.BR
A173: 7462 | B173: CREYF Fernand | C173: K.BR
A174: 4071 | B174: DE BAERE Eddy | C174: K.BR
A175: 6678 | B175: DE CORTE Jan | C175: K.Kn
A176: 6399 | B176: DELAERE Marc | C176: K.Kn
A177: 4644 | B177: DUMON Dirk | C177: K.BR
A178: 6680 | B178: FLAMEE Kurt | C178: K.BR
A179: 8881 | B179: HERPOEL Rony | C179: K.BR
A180: 4187 | B180: ROGIERS Marc | C180: K.BR
A181: 4184 | B181: DEPOORTER Chris | C181: K.BR
A182: 5439 | B182: DUCHEYNE Kenny | C182: K.BR
A183: 9279 | B183: DALINGA Meerten | C183: K.BR
A184: 4233 | B184: PIETERS Ronny | C184: K.BR
A185: 9778 | B185: POPPE Rudy | C185: K.BR
A186: 4363 | B186: PRIEUS Andy | C186: K.BR
A187: 4070 | B187: DE BAERE Cindy | C187: K.BR
A188: 8677 | B188: CAMPE Etienne | C188: K.BR
A189: NS 18 | B189: VERSCHAEVE Edwin | C189: K.BR
A190: 8676 | B190: NEUBOURG Freddy | C190: K.BR
A192: 4422 | B192: DE MEYER Rudi | C192: K.EBC
A193: 1022 | B193: MENHEER Leslie | C193: K.EBC
A194: 4473 | B194: DE BAETS Ronny | C194: K.EBC
A195: 4482 | B195: STAELENS Freddy | C195: K.EBC
A196: 4538 | B196: DE LOMBAERT Albert | C196: K.EBC
A197: 4539 | B197: DE MIL Christiaan | C197: K.EBC
A198: 4544 | B198: GEVAERT Michel | C198: K.EBC
A199: 4545 | B199: GOETHALS Armand | C199: K.EBC
A200: 4558 | B200: SIMOENS Wilfried | C200: K.EBC
A201: 4559 | B201: STANDAERT Arthur | C201: K.EBC
A202: 4560 | B202: STANDAERT Peter | C202: K.EBC
A203: 4561 | B203: VAN DAMME Etienne | C203: K.EBC
A204: 4567 | B204: VLERICK Raf | C204: K.EBC
A205: 5212 | B205: STEVENS Martin | C205: K.EBC
A206: 5769 | B206: HAERENS Raf | C206: K.EBC
A207: 9067 | B207: De Letter Sandra | C207: K.EBC
A208: 6096 | B208: VAN REETH Rudy | C208: K.EBC
A209: 6097 | B209: VAN DE VOORDE Johan | C209: K.EBC
A210: 6709 | B210: WELVAERT Yves | C210: K.EBC
A211: 7478 | B211: BAUMGARTE Cees | C211: K.EBC
... 543 more rows
